bitfinex/quotes_SOLUSD_20240814
["timestamp","ask_amount","ask_price","bid_price","bid_amount"]
[1723664190371,6.9171,144.57,144.53,45.0]
[1723664191284,6.9175,144.56,144.53,45.0]
[1723664191483,6.9171,144.57,144.52,51.9194]
[1723664191883,6.9176,144.56,144.52,45.0]
[1723664193477,6.9171,144.57,144.52,51.9193]
[1723664194167,6.9175,144.56,144.52,45.0]
[1723664197070,6.9171,144.57,144.52,51.9194]
[1723664197291,6.9166,144.58,144.53,6.9189]
[1723664199110,6.9166,144.58,144.54,45.0]
[1723664201185,6.9162,144.59,144.54,51.9184]
[1723664201500,6.9156,144.6,144.55,6.9179]
[1723664201886,6.9152,144.61,144.56,6.9174]
[1723664202094,6.9148,144.62,144.57,22.9659]
[1723664202309,6.9148,144.62,144.57,67.9659]
[1723664202688,32.24,144.64,144.57,61.0489]
[1723664202689,6.9157,144.6,144.57,61.0489]
[1723664202887,6.9157,144.6,144.57,16.0489]
[1723664203298,32.24,144.64,144.57,16.0489]
[1723664203299,6.9152,144.61,144.57,16.0489]
[1723664203694,6.9156,144.6,144.57,16.0489]
[1723664204003,6.9165,144.58,144.55,6.1605]
[1723664205302,32.24,144.63,144.55,6.1605]
[1723664205716,6.9157,144.6,144.55,13.0783]
[1723664206025,6.9152,144.61,144.56,51.9174]
[1723664207190,20.0,144.62,144.56,51.9174]
[1723664207191,26.9147,144.62,144.57,6.917]
[1723664208004,6.9151,144.61,144.57,6.917]
[1723664208594,20.0,144.62,144.56,45.0]
[1723664208806,6.914,144.64,144.59,6.9159]
[1723664209117,6.9142,144.63,144.59,6.9159]
[1723664209311,6.9142,144.63,144.58,6.9164]
[1723664211888,6.9153,144.61,144.57,16.4519]
[1723664212095,6.9148,144.62,144.57,23.3689]
[1723664212706,6.9142,144.63,144.58,6.9165]
[1723664212904,0.37647,144.66,144.58,45.0]
[1723664213106,32.24,144.64,144.57,16.4519]
[1723664213299,20.0,144.63,144.57,23.3689]
[1723664213694,20.0,144.63,144.57,16.4519]
[1723664213898,6.9151,144.61,144.57,16.4519]
[1723664214720,20.0,144.63,144.55,13.0784]
[1723664214721,37.2859,144.63,144.55,13.0784]
[1723664215029,17.2859,144.63,144.55,13.0784]
[1723664215221,6.9159,144.6,144.55,13.0784]
[1723664215535,6.9153,144.61,144.56,6.9174]
[1723664215841,6.915,144.62,144.57,6.9169]
[1723664216736,6.9151,144.61,144.57,6.9169]
[1723664217434,32.36549,144.65,144.55,6.1605]
[1723664217435,6.9156,144.6,144.55,6.1605]
[1723664217605,6.9156,144.6,144.55,13.0781]
[1723664218000,6.9156,144.6,144.56,6.9175]
[1723664218591,6.9156,144.6,144.55,13.0783]
[1723664219936,6.9156,144.6,144.56,6.9174]
[1723664220106,6.9161,144.59,144.55,13.0783]
[1723664220311,6.9161,144.59,144.55,13.0784]
[1723664220521,6.9157,144.6,144.55,13.0784]
[1723664220821,6.9161,144.59,144.55,13.0784]
[1723664221418,6.9157,144.6,144.55,13.0784]
[1723664222029,6.9151,144.61,144.55,6.1605]
[1723664222228,6.9151,144.61,144.56,51.9173]
[1723664225175,32.24,144.63,144.56,45.0]
[1723664225338,37.53808,144.62,144.56,45.0]
[1723664225527,6.9169,144.58,144.54,6.9184]
[1723664225726,6.9162,144.59,144.54,6.9184]
[1723664226151,6.9166,144.58,144.54,6.9184]
[1723664226459,6.9166,144.58,144.53,23.2487]
[1723664228661,6.9171,144.57,144.53,23.2487]
[1723664229872,32.24,144.57,144.51,7.23407213]
[1723664230161,32.24,144.57,144.52,6.9192]
[1723664230162,6.9171,144.57,144.52,6.9192]
[1723664230372,6.9171,144.57,144.53,6.9189]
[1723664231965,17.2886,144.61,144.54,6.9182]
[1723664232170,20.0,144.6,144.54,6.9182]
[1723664232476,6.9172,144.57,144.52,6.9193]
[1723664232952,6.9167,144.58,144.5,32.36549]
[1723664233152,6.9152,144.61,144.56,6.9174]
[1723664234141,15.8683,144.66,144.54,32.24]
[1723664234349,6.9145,144.63,144.58,6.9165]
[1723664234549,49.5236,144.65,144.55,0.25098]
[1723664234750,6.9156,144.6,144.55,6.9178]
[1723664234961,6.9156,144.6,144.56,6.9174]
[1723664235178,69.47306163,144.65,144.56,6.9174]
[1723664235179,6.9152,144.61,144.56,6.9174]
[1723664237066,6.9148,144.62,144.55,16.2152]
[1723664237972,6.9148,144.62,144.58,6.9165]
[1723664238477,0.12549,144.64,144.55,16.2152]
[1723664238780,20.50196,144.64,144.55,16.2152]
[1723664239577,6.9157,144.6,144.55,23.1331]
[1723664240151,6.9157,144.6,144.56,6.9175]
[1723664240852,20.0,144.64,144.55,16.2152]
[1723664241058,20.0,144.64,144.59,6.916]
[1723664241059,26.914,144.64,144.59,6.916]
[1723664241258,12.46751333,144.66,144.59,6.916]
[1723664241491,20.0,144.65,144.59,6.916]
[1723664242584,6.9143,144.63,144.58,13.4038]
[1723664245366,6.9159,144.6,144.55,23.133]
[1723664245573,52.53798085,144.66,144.55,23.133]
[1723664245574,17.2871,144.62,144.55,16.2152]
[1723664245773,20.50196,144.61,144.51,30.0529]
[1723664245983,0.12549,144.59,144.52,6.9194]
[1723664246155,0.37647,144.59,144.52,6.9194]
[1723664246584,0.25098,144.59,144.51,23.1332]
[1723664246762,32.24,144.59,144.51,23.1332]
[1723664246958,0.12549,144.58,144.51,23.1332]
[1723664247178,6.9174,144.57,144.52,6.9193]
[1723664247378,6.9175,144.56,144.52,6.9193]
[1723664248481,6.918,144.55,144.51,30.053]
[1723664249258,6.9176,144.56,144.51,30.053]
[1723664249660,6.9176,144.56,144.52,6.9194]
[1723664250387,6.9183,144.55,144.51,16.6336]
[1723664250657,6.919,144.53,144.48,6.9209]
[1723664251160,6.9186,144.54,144.49,6.9208]
[1723664251360,6.9181,144.55,144.47,22.6973]
[1723664251563,6.9181,144.55,144.5,6.9203]
[1723664253175,6.9181,144.55,144.51,6.9198]
[1723664254601,6.9181,144.55,144.5,6.9202]
[1723664255594,6.917,144.57,144.48,0.12549]
[1723664255891,6.917,144.57,144.52,6.9191]
[1723664256093,6.9167,144.58,144.53,6.9189]
[1723664256660,6.9167,144.58,144.53,22.7011]
[1723664258013,6.9152,144.61,144.56,6.9172]
[1723664258805,6.9157,144.6,144.55,6.9179]
[1723664261113,6.9157,144.6,144.53,22.1346]
[1723664261114,17.2861,144.63,144.53,29.0535]
[1723664261406,6.9162,144.59,144.54,6.9183]
[1723664263987,6.9166,144.58,144.54,6.9183]
[1723664264193,0.37647,144.62,144.53,29.0534]
[1723664264394,17.41379,144.61,144.53,22.1346]
[1723664264602,6.9176,144.56,144.53,15.7822]
[1723664265169,6.9171,144.57,144.53,15.7822]
[1723664265395,6.9171,144.57,144.53,22.7011]
[1723664265897,0.37647,144.6,144.51,6.9198]
[1723664266109,0.12549,144.59,144.51,6.9198]
[1723664266274,6.9176,144.56,144.51,6.9198]
[1723664266599,6.9176,144.56,144.52,6.9193]
[1723664270482,6.9176,144.56,144.51,6.9197]
[1723664271079,19.8071,144.57,144.52,6.9193]
[1723664271698,6.9176,144.56,144.52,6.9193]
[1723664273183,6.918,144.55,144.51,6.9197]
[1723664273793,6.9176,144.56,144.51,6.9197]
[1723664274187,6.918,144.55,144.51,6.9197]
[1723664274480,12.89,144.54,144.5,15.5063]
[1723664274685,19.8085,144.54,144.5,15.5063]
[1723664275100,19.8085,144.54,144.5,22.4266]
[1723664276387,19.8085,144.54,144.5,15.5063]
[1723664276587,6.9189,144.53,144.5,15.5063]
[1723664276886,12.89,144.52,144.5,15.5063]
[1723664277818,15.13039,144.58,144.5,22.4263]
[1723664277819,12.89,144.54,144.5,22.4263]
[1723664278685,12.89,144.54,144.51,6.9199]
[1723664280014,6.918,144.55,144.51,6.9199]
[1723664280208,6.918,144.55,144.5,22.4265]
[1723664280915,19.8076,144.56,144.51,6.9199]
[1723664281114,19.8098,144.52,144.47,6.9215]
[1723664281287,12.89,144.52,144.46,15.5385]
[1723664281587,6.919,144.53,144.46,15.5385]
[1723664282003,6.919,144.53,144.48,6.9212]
[1723664282205,19.8095,144.52,144.47,6.9216]
[1723664283808,19.8095,144.52,144.48,6.9213]
[1723664284623,6.92,144.51,144.47,6.9216]
[1723664284811,12.89,144.5,144.46,15.5385]
[1723664285114,17.2966,144.54,144.43,6.9237]
[1723664285115,6.9218,144.47,144.43,6.9237]
[1723664285321,19.8114,144.48,144.43,6.9237]
[1723664285511,12.89,144.48,144.44,6.9232]
[1723664285814,6.9208,144.5,144.46,6.9223]
[1723664285815,19.8108,144.5,144.46,6.9223]
[1723664286016,6.9209,144.49,144.42,22.1092]
[1723664286412,6.9209,144.49,144.44,6.9229]
[1723664286908,6.9213,144.48,144.43,51.9236]
[1723664287109,12.89,144.48,144.43,45.0]
[1723664287303,12.89,144.46,144.43,45.0]
[1723664287496,12.89,144.46,144.42,22.1092]
[1723664287700,12.89,144.46,144.42,29.0329]
[1723664288108,6.9218,144.47,144.42,29.0333]
[1723664288312,19.8118,144.47,144.42,29.0333]
[1723664289213,6.9224,144.46,144.42,29.0333]
[1723664289601,19.8119,144.47,144.42,29.0333]
[1723664291612,0.12549,144.52,144.42,22.1092]
[1723664291798,0.25098,144.52,144.43,45.0]
[1723664292112,6.9209,144.49,144.44,6.9229]
[1723664293417,6.9209,144.49,144.45,6.9227]
[1723664296020,6.9204,144.5,144.45,6.9227]
[1723664296425,6.9204,144.5,144.46,6.9223]
[1723664296803,6.9204,144.5,144.45,6.9227]
[1723664297827,6.9213,144.48,144.43,45.0]
[1723664298399,6.921,144.49,144.44,6.9231]
[1723664298599,6.921,144.49,144.45,45.0]
[1723664299011,6.921,144.49,144.45,51.9227]
[1723664299213,6.9216,144.48,144.43,6.9234]
[1723664299522,6.9216,144.48,144.42,22.1092]
[1723664299724,6.9216,144.48,144.43,6.9237]
[1723664299915,0.12549,144.52,144.42,29.0333]
[1723664299916,19.8118,144.47,144.42,29.0333]
[1723664300902,6.9223,144.46,144.42,29.0333]
[1723664304426,6.9223,144.46,144.42,22.1092]
[1723664304631,6.9223,144.46,144.42,15.7256]
[1723664305418,6.9229,144.45,144.42,15.7256]
[1723664306014,6.9229,144.45,144.41,6.9245]
[1723664307211,6.9233,144.44,144.38,21.0303]
[1723664307417,19.8139,144.43,144.38,27.956]
[1723664307623,6.9248,144.41,144.36,6.9267]
[1723664307841,6.3797,144.49,144.38,12.89]
[1723664308035,20.0,144.48,144.38,12.89]
[1723664308343,6.9222,144.47,144.42,6.9239]
[1723664308835,6.9223,144.46,144.42,6.9239]
[1723664309026,6.9223,144.46,144.41,6.9246]
[1723664309943,6.9223,144.46,144.42,6.9241]
[1723664310751,6.9223,144.46,144.41,6.9246]
[1723664311044,6.9228,144.45,144.41,6.9246]
[1723664312626,6.9224,144.46,144.41,6.9246]
[1723664312848,6.9224,144.46,144.42,6.9241]
[1723664313346,6.922,144.47,144.42,6.9241]
[1723664316443,6.9223,144.46,144.42,6.9241]
[1723664317152,8.19220169,144.54,144.43,35.4223]
[1723664317458,6.921,144.49,144.44,6.9231]
[1723664320640,6.9206,144.5,144.43,22.5323]
[1723664320837,6.9206,144.5,144.44,45.0]
[1723664321229,6.9206,144.5,144.45,6.9224]
[1723664323164,6.9195,144.52,144.47,6.9214]
[1723664327054,12.89,144.51,144.46,6.9222]
[1723664327459,12.89,144.51,144.43,22.5323]
[1723664327793,0.12549,144.52,144.43,16.2361]
[1723664327794,20.50196,144.5,144.43,16.2361]
[1723664328084,26.9205,144.5,144.45,6.9224]
[1723664328596,12.89,144.49,144.43,16.2361]
[1723664328798,6.922,144.47,144.43,23.1598]
[1723664329005,19.812,144.47,144.43,16.2361]
[1723664330265,6.9224,144.46,144.43,16.2361]
[1723664330467,6.9224,144.46,144.42,6.9238]
[1723664331703,19.812,144.47,144.42,6.9238]
[1723664331865,6.922,144.47,144.43,6.9236]
[1723664332786,6.9213,144.48,144.44,6.9231]
[1723664332999,6.9213,144.48,144.43,6.9236]
[1723664334397,6.9219,144.47,144.43,6.9236]
[1723664335199,6.9225,144.46,144.42,6.9242]
[1723664335894,0.12549,144.48,144.42,6.9242]
[1723664335895,6.9222,144.47,144.42,6.9242]
[1723664338693,6.9222,144.47,144.43,6.9237]
[1723664339200,6.9222,144.47,144.42,6.924]
[1723664339717,6.9222,144.47,144.43,6.9237]
[1723664340703,6.9226,144.46,144.4,15.957]
[1723664340890,6.9229,144.45,144.41,6.9245]
[1723664341475,12.89,144.47,144.41,6.9245]
[1723664341476,6.9224,144.46,144.41,6.9245]
[1723664341816,6.9229,144.45,144.41,6.9245]
[1723664342406,6.9224,144.46,144.42,6.924]
[1723664342776,6.9219,144.47,144.42,6.924]
[1723664343616,6.922,144.47,144.42,6.924]
[1723664344603,6.922,144.47,144.43,6.9237]
[1723664344911,6.922,144.47,144.42,6.924]
[1723664346183,6.9223,144.46,144.42,6.924]
[1723664346376,6.9229,144.45,144.4,15.957]
[1723664346578,6.9233,144.44,144.4,22.8821]
[1723664347018,12.89,144.45,144.39,13.1248]
[1723664347183,12.89,144.43,144.37,16.5699]
[1723664347379,6.9248,144.41,144.37,23.4965]
[1723664347575,6.9248,144.41,144.37,16.5699]
[1723664348402,6.9248,144.41,144.36,6.927]
[1723664348816,20.50196,144.44,144.37,6.9264]
[1723664348817,6.9243,144.42,144.37,6.9264]
[1723664349022,6.9243,144.42,144.36,12.89]
[1723664349314,6.9243,144.42,144.37,6.9265]
[1723664349516,20.12549,144.44,144.36,12.89]
[1723664349517,6.9238,144.43,144.36,12.89]
[1723664349683,6.9231,144.45,144.4,6.925]
[1723664349887,12.89,144.46,144.4,6.925]
[1723664349888,6.9233,144.44,144.4,6.925]
[1723664350285,6.9228,144.45,144.4,6.925]
[1723664351313,6.9228,144.45,144.4,22.263]
[1723664353631,19.97319553,144.48,144.41,6.87371142]
[1723664353786,6.9207,144.5,144.45,6.9226]
[1723664354723,6.9209,144.49,144.45,6.9226]
[1723664354901,6.9209,144.49,144.44,6.9231]
[1723664355083,6.9209,144.49,144.45,6.9227]
[1723664356185,6.9205,144.5,144.45,6.9227]
[1723664356405,6.9199,144.51,144.46,23.26654785]
[1723664356605,6.9199,144.51,144.46,22.5298]
[1723664357604,6.9199,144.51,144.47,6.9217]
[1723664358203,6.9199,144.51,144.46,22.5299]
[1723664359826,6.9204,144.5,144.46,22.5299]
[1723664362942,6.92,144.51,144.46,22.5299]
[1723664363239,6.9198,144.52,144.47,6.4532]
[1723664363399,6.9198,144.52,144.47,58.3749]
[1723664365531,0.12549,144.54,144.47,51.4532]
[1723664365699,20.0,144.55,144.47,51.4532]
[1723664365902,6.9191,144.53,144.48,0.12549]
[1723664366104,6.9191,144.53,144.47,51.4532]
[1723664366610,6.9191,144.53,144.49,6.9208]
[1723664367202,6.9189,144.54,144.49,6.9208]
[1723664367938,6.9193,144.53,144.48,6.9213]
[1723664368321,6.9194,144.52,144.47,58.3749]
[1723664368528,20.08930173,144.57,144.47,51.4532]
[1723664368529,6.9199,144.51,144.47,51.4532]
[1723664368926,6.9199,144.51,144.47,6.4532]
[1723664369941,6.9199,144.51,144.47,13.3749]
[1723664370336,6.9195,144.52,144.47,6.4532]
[1723664370547,6.9188,144.54,144.49,6.9204]
[1723664370722,6.9188,144.54,144.5,45.0]
[1723664371519,6.9191,144.53,144.5,45.0]
[1723664371736,6.9191,144.53,144.49,6.9204]
[1723664374052,6.9191,144.53,144.48,6.921]
[1723664374240,6.9191,144.53,144.49,45.0]
[1723664376524,6.9191,144.53,144.49,51.9207]
[1723664377948,32.26,144.57,144.51,6.9197]
[1723664378139,32.26,144.57,144.52,51.9193]
[1723664378140,6.9174,144.57,144.52,51.9193]
[1723664378644,6.9175,144.56,144.52,51.9193]
[1723664379851,6.9175,144.56,144.52,45.0]
[1723664380647,17.41849,144.57,144.5,15.9124]
[1723664380946,6.919,144.53,144.5,15.9124]
[1723664382350,6.9181,144.55,144.5,22.8327]
[1723664382721,6.9185,144.54,144.5,22.8327]
[1723664383852,6.9185,144.54,144.5,15.9124]
[1723664386050,6.9185,144.54,144.5,22.8327]
[1723664388341,6.9191,144.53,144.5,15.9124]
[1723664390293,6.9186,144.54,144.5,15.9124]
[1723664390465,6.9181,144.55,144.5,15.9124]
[1723664390855,6.9173,144.57,144.52,6.9191]
[1723664391280,6.9175,144.56,144.52,6.9191]
[1723664394489,6.9175,144.56,144.51,51.9197]
[1723664394687,6.918,144.55,144.51,51.9197]
[1723664395191,6.9176,144.56,144.51,51.9197]
[1723664397886,6.918,144.55,144.51,45.0]
[1723664398093,6.9175,144.56,144.52,6.9193]
[1723664398284,6.9175,144.56,144.53,45.0]
[1723664399300,6.9175,144.56,144.51,6.9198]
[1723664399674,6.9175,144.56,144.52,51.9192]
[1723664400205,6.9171,144.57,144.53,6.133]
[1723664400362,6.9168,144.58,144.53,13.0518]
[1723664400560,12.89,144.59,144.53,13.0518]
[1723664401363,6.9171,144.57,144.53,13.0518]
[1723664401781,12.47347096,144.6,144.54,15.5162]
[1723664401974,12.47347096,144.61,144.54,15.5162]
[1723664402263,6.915,144.62,144.57,6.9166]
[1723664402480,19.9576899,144.64,144.59,6.9159]
[1723664402681,6.9143,144.63,144.59,6.9159]
[1723664403190,12.46821456,144.66,144.57,21.6492]
[1723664403394,12.46821456,144.66,144.58,45.0]
[1723664403688,6.9148,144.62,144.58,45.0]
[1723664403871,6.9148,144.62,144.58,51.9165]
[1723664404182,6.9148,144.62,144.58,45.0]
[1723664404389,6.9148,144.62,144.58,51.9164]
[1723664405087,6.9148,144.62,144.58,45.0]
[1723664406272,6.9153,144.61,144.58,45.0]
[1723664406474,6.9153,144.61,144.57,21.6492]
[1723664407479,6.9156,144.6,144.57,21.6492]
[1723664407899,0.25098,144.64,144.57,21.6492]
[1723664408075,6.915,144.62,144.58,45.0]
[1723664408788,6.9143,144.63,144.58,45.0]
[1723664409019,26.9133,144.65,144.58,58.41277735]
[1723664409184,6.9128,144.66,144.61,6.915]
[1723664409388,6.9128,144.66,144.63,16.2583]
[1723664410296,6.9133,144.65,144.63,16.2583]
[1723664411392,19.8027,144.66,144.63,16.2583]
[1723664411571,6.9137,144.64,144.63,16.2583]
[1723664411771,12.89,144.66,144.63,16.2583]
[1723664411772,6.9133,144.65,144.63,16.2583]
[1723664412774,6.9137,144.64,144.6,6.9155]
[1723664413395,6.9137,144.64,144.59,15.1238]
[1723664413695,6.9137,144.64,144.6,45.0]
[1723664414693,17.2788,144.69,144.6,45.0]
[1723664414892,17.2788,144.69,144.61,6.915]
[1723664414893,6.9131,144.66,144.61,6.915]
[1723664415199,6.9133,144.65,144.62,45.0]
[1723664416366,6.9128,144.66,144.62,58.1257]
[1723664416572,6.9127,144.66,144.62,58.1257]
[1723664416996,6.9133,144.65,144.62,45.0]
[1723664417389,6.9142,144.63,144.59,15.1238]
[1723664417594,19.8037,144.64,144.61,45.0]
[1723664417771,19.8037,144.64,144.6,45.0]
[1723664418303,12.89,144.64,144.59,15.1238]
[1723664418498,12.89,144.62,144.56,22.5755]
[1723664418698,6.9156,144.6,144.56,22.5755]
[1723664418873,19.8056,144.6,144.56,15.6581]
[1723664419290,19.8056,144.6,144.56,22.5756]
[1723664419487,19.8051,144.62,144.57,6.9168]
[1723664419691,6.9151,144.62,144.57,6.9168]
[1723664419995,6.9152,144.61,144.57,6.9168]
[1723664420178,6.9152,144.61,144.58,45.0]
[1723664420385,6.9147,144.62,144.58,45.0]
[1723664420797,6.9151,144.61,144.58,45.0]
[1723664421796,6.9151,144.61,144.56,22.5755]
[1723664422003,6.9151,144.61,144.57,45.0]
[1723664422500,6.9148,144.62,144.57,51.9169]
[1723664424177,6.9157,144.6,144.57,45.0]
[1723664424378,12.89,144.61,144.56,15.6581]
[1723664424379,6.9167,144.58,144.56,15.6581]
[1723664424799,0.12549,144.64,144.52,23.0169]
[1723664424800,12.89,144.57,144.52,23.0169]
[1723664424995,6.918,144.55,144.52,16.0976]
[1723664425199,6.9185,144.54,144.52,16.0976]
[1723664425392,19.8081,144.55,144.5,6.9203]
[1723664425599,12.89,144.55,144.51,6.9199]
[1723664425882,12.89,144.57,144.51,6.9199]
[1723664426693,6.9181,144.55,144.5,6.9202]
[1723664427197,12.89,144.55,144.49,7.23497318]
[1723664427398,12.89,144.55,144.48,22.599]
[1723664427711,19.8084,144.55,144.52,45.0]
[1723664427884,6.9187,144.54,144.52,45.0]
[1723664428604,12.89,144.55,144.51,6.9198]
[1723664428800,19.808,144.55,144.5,6.9203]
[1723664429304,19.808,144.55,144.51,45.0]
[1723664431110,6.918,144.55,144.51,45.0]
[1723664431314,6.9171,144.57,144.52,8.30017933]
[1723664431607,6.9176,144.56,144.53,45.0]
[1723664431813,6.9176,144.56,144.51,51.9198]
[1723664431985,6.9176,144.56,144.52,6.9193]
[1723664432188,6.9176,144.56,144.53,45.0]
[1723664433213,12.89,144.55,144.48,22.599]
[1723664433519,6.919,144.53,144.48,29.5202]
[1723664433705,19.809,144.53,144.48,29.5202]
[1723664434412,6.9186,144.54,144.49,6.9207]
[1723664435008,6.9186,144.54,144.5,45.0]
[1723664436121,6.9186,144.54,144.5,51.9203]
[1723664437316,6.919,144.53,144.5,45.0]
[1723664437793,6.9185,144.54,144.5,45.0]
[1723664438499,6.9185,144.54,144.5,46.03612665]
[1723664438925,6.9185,144.54,144.5,45.0]
[1723664439498,6.919,144.53,144.5,45.0]
[1723664439699,6.919,144.53,144.49,45.0]
[1723664439927,6.919,144.53,144.48,29.5203]
[1723664440128,6.9194,144.52,144.48,29.5203]
[1723664440833,6.9186,144.54,144.49,6.9207]
[1723664441331,6.919,144.53,144.5,45.0]
[1723664446420,6.9186,144.54,144.5,51.9203]
[1723664447406,38.5714,144.61,144.5,45.0]
[1723664447735,0.12549,144.59,144.49,45.25098]
[1723664448328,6.9178,144.56,144.51,6.9197]
[1723664449123,6.9178,144.56,144.52,45.0]
[1723664449325,6.918,144.55,144.52,45.0]
[1723664449640,20.0,144.6,144.52,45.0]
[1723664449850,6.9169,144.58,144.53,6.9188]
[1723664450011,6.9169,144.58,144.54,45.0]
[1723664451013,6.917,144.57,144.54,45.0]
[1723664451735,6.917,144.57,144.53,45.0]
[1723664451937,6.9175,144.56,144.53,45.0]
[1723664452255,0.12549,144.58,144.53,45.0]
[1723664452449,20.37647,144.58,144.48,22.599]
[1723664452622,6.9181,144.55,144.5,6.92]
[1723664452821,6.9181,144.55,144.48,22.599]
[1723664452822,6.9181,144.55,144.51,6.9197]
[1723664453326,6.9181,144.55,144.48,22.599]
[1723664453327,6.9181,144.55,144.52,45.0]
[1723664453532,6.9186,144.54,144.51,45.0]
[1723664454845,6.9181,144.55,144.51,51.9197]
[1723664455343,20.12549,144.58,144.51,45.0]
[1723664455544,6.9176,144.56,144.51,51.9197]
[1723664455839,6.9181,144.55,144.51,51.9197]
[1723664457047,17.2872,144.62,144.53,0.12549]
[1723664457262,6.9164,144.59,144.54,6.9183]
[1723664457750,6.9164,144.59,144.55,45.0]
[1723664458649,6.9164,144.59,144.55,51.918]
[1723664459022,6.9164,144.59,144.55,45.0]
[1723664459753,5.9164,144.59,144.55,45.0]
[1723664460530,6.9151,144.62,144.55,45.0]
[1723664460847,12.89,144.64,144.56,0.12549]
[1723664460848,6.9152,144.61,144.56,0.12549]
[1723664461041,6.9152,144.61,144.55,45.0]
[1723664461227,19.8045,144.63,144.58,6.9164]
[1723664461575,6.9145,144.63,144.59,6.916]
[1723664461739,6.9145,144.63,144.58,6.9164]
[1723664463250,6.9145,144.63,144.59,45.0]
[1723664466039,6.9146,144.62,144.59,45.0]
[1723664466950,6.9146,144.62,144.58,45.0]
[1723664467135,19.8043,144.63,144.58,51.9162]
[1723664467339,12.89,144.65,144.58,51.9162]
[1723664467644,20.0,144.64,144.58,51.9162]
[1723664468457,20.0,144.64,144.59,6.916]
[1723664468644,6.9138,144.64,144.6,51.9154]
[1723664468841,6.9138,144.64,144.61,1.38215001]
[1723664469436,6.9138,144.64,144.6,51.9155]
[1723664469637,35.3307202,144.68,144.61,0.12549]
[1723664469638,6.9128,144.66,144.61,0.12549]
[1723664469948,30.1689,144.69,144.63,6.9141]
[1723664469949,6.9124,144.67,144.63,6.9141]
[1723664470141,12.89,144.69,144.61,7.04049]
[1723664470345,29.7440557,144.7,144.6,45.0]
[1723664470346,6.9132,144.65,144.6,45.0]
[1723664470545,6.9132,144.65,144.62,45.0]
[1723664470740,12.89,144.67,144.6,45.0]
[1723664470741,6.913,144.66,144.6,45.0]
[1723664470951,6.913,144.66,144.61,7.04029]
[1723664471250,6.9124,144.67,144.62,51.9146]
[1723664471756,6.9124,144.67,144.63,6.9141]
[1723664471957,5.9128,144.66,144.64,45.0]
[1723664472258,6.9129,144.66,144.64,45.0]
[1723664472641,6.9129,144.66,144.62,51.9146]
[1723664473446,6.9123,144.67,144.63,0.12549]
[1723664474139,6.9123,144.67,144.63,7.03959]
[1723664474335,6.9123,144.67,144.64,45.0]
[1723664478056,6.9123,144.67,144.63,45.0]
[1723664479052,6.9127,144.66,144.63,45.0]
[1723664480545,6.9123,144.67,144.63,45.0]
[1723664480946,18.0997659,144.73,144.63,45.0]
[1723664481141,20.0,144.72,144.64,6.43797]
[1723664481346,32.89,144.72,144.65,45.0]
[1723664481565,6.91,144.72,144.67,6.9119]
[1723664482767,6.9104,144.71,144.68,45.0]
[1723664482973,7.7353659,144.73,144.68,51.9116]
[1723664483667,0.8255659,144.73,144.69,7.03669]